{"text_format":"2","workbook":"xlsx","n_sheets":2,"sheets":["moneyform","extra checks"],"not_rendered":{"charts":0,"images":0,"macros":0,"external_links":0,"defined_names":0,"comments":0,"pivot_tables":0},"unopened":[],"bounds":{"document_bytes":16777216,"sheet_cells":100000,"run_cost":"one","rows_first":2000,"rows_last":500,"rows_between":2000,"halvings":0,"cell_chars":16384,"cell_head_chars":4096},"cells_cut":0,"cells_raw":0,"read":"whole","date_system":"1900"}

{"sheet":"moneyform","index":0,"n_rows":69,"n_cols":5,"rows_kept":69,"cut":false,"hidden":false,"merged":[[0,0,0,4],[1,0,1,4],[46,1,46,2]]}
["SALT BROOK SCHOOL PTA"]
["MONEY COUNTING FORM"]
[]
["Please submit this form to the PTA Treasurer, Ana Roth (anaroth@mac.com), along with the funds from your event."]
[]
["Activity: "]
["Date: "]
[]
[]
["CASH"]
[null,"TYPE OF BILLS","#  OF BILLS","TOTAL CASH"]
[null,1.0,0.0,{"$f":"B12*C12","v":0}]
[null,5.0,0.0,0]
[null,10.0,0.0,0]
[null,20.0,0.0,0]
[null,50.0,0.0,0]
[null,100.0,0.0,0]
[]
[null,null,null,"Total Cash :",{"$f":"SUM(D12:D17)","v":0}]
[]
["CHECKS"]
[null,"CHECK AMOUNT","# OF CHECKS","TOTAL "]
[null,null,0.0,{"$f":"B23*C23","v":0}]
[null,null,0.0,0]
[null,null,0.0,0]
[null,null,0.0,0]
[null,null,0.0,0]
[null,null,0.0,0]
[null,null,0.0,0]
[null,null,0.0,0]
[null,null,0.0,0]
[null,null,0.0,0]
[null,null,0.0,0]
[null,null,0.0,0]
[null,null,0.0,0]
[null,null,0.0,0]
[null,null,0.0,0]
[null,null,0.0,0]
[null,null,0.0,0]
[null,null,0.0,0]
[null,null,0.0,0]
[null,null,0.0,0]
[null,null,0.0,0]
[null,null,0.0,0]
[null,null,0.0,0]
[null,null,0.0,0]
[null,"Additional Checks from Page 2",null,{"$f":"'extra checks'!D55","v":0}]
[]
[null,null,null,"Total Checks :",{"$f":"SUM(D23:D47)","v":0}]
[]
[]
["TOTAL FUNDS",null,null,"Cash + Checks",{"$f":"E49+E19","v":0}]
[]
[]
[null,null,null,"LESS START UP CASH:",0.0]
[]
[]
[null,null,null,"TOTAL",{"$f":"E52-E55","v":0}]
[]
[null,"Checked by:"]
[]
[null,"Verified by:"]
[]
[null,"SIGNED OFF:"]
[]
[null,"DATE:"]
[]
[]
["** List all checks by dollar amount, and total the number of checks at each dollar amount."]

{"sheet":"extra checks","index":1,"n_rows":55,"n_cols":4,"rows_kept":55,"cut":false,"hidden":false,"merged":[]}
["ADDITIONAL CHECKS"]
[]
[null,"CHECK AMOUNT","# OF CHECKS","TOTAL "]
[null,null,0.0,{"$f":"B4*C4","v":0}]
[null,null,0.0,0]
[null,null,0.0,0]
[null,null,0.0,0]
[null,null,0.0,0]
[null,null,0.0,0]
[null,null,0.0,0]
[null,null,0.0,0]
[null,null,0.0,0]
[null,null,0.0,0]
[null,null,0.0,0]
[null,null,0.0,0]
[null,null,0.0,0]
[null,null,0.0,0]
[null,null,0.0,0]
[null,null,0.0,0]
[null,null,0.0,0]
[null,null,0.0,0]
[null,null,0.0,0]
[null,null,0.0,0]
[null,null,0.0,0]
[null,null,0.0,0]
[null,null,0.0,0]
[null,null,0.0,0]
[null,null,0.0,0]
[null,null,0.0,0]
[null,null,0.0,0]
[null,null,0.0,0]
[null,null,0.0,0]
[null,null,0.0,0]
[null,null,0.0,0]
[null,null,0.0,0]
[null,null,0.0,0]
[null,null,0.0,0]
[null,null,0.0,0]
[null,null,0.0,0]
[null,null,0.0,0]
[null,null,0.0,0]
[null,null,0.0,0]
[null,null,0.0,0]
[null,null,0.0,0]
[null,null,0.0,0]
[null,null,0.0,0]
[null,null,0.0,0]
[null,null,0.0,0]
[null,null,0.0,0]
[null,null,0.0,0]
[null,null,0.0,0]
[null,null,0.0,0]
[null,null,0.0,0]
[]
["Total Checks to carry to summary page:",null,null,{"$f":"SUM(D4:D53)","v":0}]